bitfinex-derivatives/quotes_ETHF0:USTF0_20250807
["timestamp","ask_amount","ask_price","bid_price","bid_amount"]
[1754552903042,18.9288,3699.1,3699.0,1.04188]
[1754552903346,22.69385436,3699.1,3699.0,2.26418]
[1754552904147,4.24085436,3699.1,3699.0,2.26418]
[1754552904349,22.69385436,3699.1,3699.0,2.26418]
[1754552905952,22.69285436,3699.1,3699.0,2.26418]
[1754552906345,22.12885436,3699.1,3699.0,2.26418]
[1754552906542,22.41665436,3699.1,3699.0,2.26418]
[1754552907152,22.12385436,3699.1,3699.0,2.26418]
[1754552907548,21.48165436,3699.1,3699.0,2.26418]
[1754552907747,21.92995436,3699.1,3699.0,2.26418]
[1754552908239,22.49375436,3699.1,3699.0,2.26418]
[1754552908439,22.68665436,3699.1,3699.0,2.26418]
[1754552909946,21.0062573,3699.1,3699.0,2.26418]
[1754552910152,21.0022573,3699.1,3699.0,2.26418]
[1754552910549,2.5602573,3699.1,3699.0,2.26418]
[1754552911051,1.73689357,3699.1,3699.0,2.26418]
[1754552911253,2.39399357,3699.1,3699.0,2.26418]
[1754552911554,2.69029357,3699.1,3699.0,2.26418]
[1754552912152,2.23809357,3699.1,3699.0,2.26418]
[1754552912747,2.69029357,3699.1,3699.0,2.26418]
[1754552913354,2.97969357,3699.1,3699.0,2.26418]
[1754552913559,3.45799357,3699.1,3699.0,2.26418]
[1754552915256,3.45799357,3699.1,3699.0,0.54058]
[1754552915459,4.28072693,3699.1,3699.0,0.54058]
[1754552917461,4.28072693,3699.1,3699.0,1.13138]
[1754552919455,6.0176205,3699.1,3699.0,0.54058]
[1754552919659,4.28072693,3699.1,3699.0,0.54058]
[1754552919959,1.24409,3699.0,3698.9,0.54059]
[1754552920155,0.54061,3698.9,3698.8,0.54061]
[1754552920360,1.76052,3698.8,3698.7,0.54062]
[1754552920550,20.69172,3698.8,3698.7,0.54062]
[1754552920858,2.26175,3698.6,3698.5,0.54065]
[1754552921061,22.42964357,3698.6,3698.5,0.54065]
[1754552921263,23.24683332,3698.6,3698.5,0.54065]
[1754552921860,22.70618332,3698.6,3698.5,0.54065]
[1754552923364,22.70618332,3698.6,3698.5,0.82665]
[1754552924161,22.70618332,3698.6,3698.5,1.13145]
[1754552925361,22.70618332,3698.6,3698.5,0.3048]
[1754552925558,22.70618332,3698.6,3698.5,0.5908]
[1754552926665,22.70618332,3698.6,3698.5,0.794]
[1754552926968,22.70618332,3698.6,3698.5,1.4224]
[1754552927467,23.24684332,3698.6,3698.4,0.54066]
[1754552927660,2.53806642,3698.5,3698.4,0.54066]
[1754552928363,2.53806642,3698.5,3698.4,1.13146]
[1754552929567,2.53806642,3698.5,3698.4,0.5908]
[1754552929766,2.53806642,3698.5,3698.4,0.7795]
[1754552930063,2.53806642,3698.5,3698.4,1.4224]
[1754552930265,2.53806642,3698.5,3698.4,0.6779]
[1754552930967,2.53806642,3698.5,3698.4,1.4224]
[1754552931568,2.53806642,3698.5,3698.4,1.7252]
[1754552931759,2.53806642,3698.5,3698.4,1.236]
[1754552931956,2.53806642,3698.5,3698.4,1.7252]
[1754552932363,1.7211,3698.4,3698.3,1.13148]
[1754552932668,20.95706642,3698.4,3698.3,1.96308]
[1754552932860,20.95706642,3698.4,3698.3,2.26588]
[1754552933366,20.95706642,3698.4,3698.3,1.7252]
[1754552933663,20.95706642,3698.4,3698.3,0.3919]
[1754552934165,20.95706642,3698.4,3698.3,0.6779]
[1754552934364,20.95706642,3698.4,3698.3,0.9827]
[1754552934668,20.95706642,3698.4,3698.3,1.4224]
[1754552935364,20.95706642,3698.4,3698.3,1.7252]
[1754552937363,20.95706642,3698.4,3698.2,0.5407]
[1754552937364,21.49775642,3698.4,3698.2,0.5407]
[1754552937666,4.27495999,3698.3,3698.2,1.0154]
[1754552937962,4.27495999,3698.3,3698.2,0.7294]
[1754552938169,4.27495999,3698.3,3698.2,0.4747]
[1754552938666,4.27495999,3698.3,3698.2,0.1887]
[1754552938870,1.7211,3698.1,3698.0,1.97992]
[1754552939069,20.95006642,3698.1,3698.0,1.97992]
[1754552939265,20.95006642,3698.1,3698.0,2.27262]
[1754552941768,1.65494,3698.0,3696.9,1.41387568]
[1754552941966,1.81216,3697.8,3697.7,0.69]
[1754552942166,4.36601999,3697.8,3697.7,0.69]
[1754552942365,63.59101999,3697.8,3697.7,0.69]
[1754552942564,64.04481999,3697.8,3697.7,0.69]
[1754552942764,64.04481999,3697.8,3697.7,1.7045]
[1754552944174,64.04481999,3697.8,3697.5,0.6284]
[1754552944175,1.23289,3697.6,3697.5,0.6284]
[1754552944373,24.98374356,3697.6,3697.5,1.7045]
[1754552944573,23.24684999,3697.6,3697.5,1.7045]
[1754552946168,4.54364999,3697.6,3697.5,1.7045]
[1754552946368,22.42788357,3697.6,3697.5,1.7045]
[1754552946578,23.24484999,3697.6,3697.5,1.7045]
[1754552947773,22.70405999,3697.6,3697.5,1.7045]
[1754552948476,22.42785999,3697.6,3697.5,1.7045]
[1754552948876,22.70405999,3697.6,3697.5,1.7045]
[1754552950579,22.12475999,3697.6,3697.5,1.7045]
[1754552950877,20.97085999,3697.6,3697.5,1.7045]
[1754552951973,20.15389357,3697.6,3697.5,1.7045]
[1754552952776,21.10399357,3697.6,3697.5,1.7045]
[1754552953073,21.9283886,3697.6,3697.5,1.7045]
[1754552953678,22.7034886,3697.6,3697.5,1.2644]
[1754552953877,24.44038217,3697.6,3697.5,0.9602]
[1754552954876,24.44038217,3697.6,3697.5,0.7627]
[1754552955476,22.7034886,3697.6,3697.5,0.7627]
[1754552956480,24.44038217,3697.6,3697.5,0.7627]
[1754552958083,1.7252,3697.4,3697.3,0.54083]
[1754552958282,20.1382,3697.4,3697.3,1.11523]
[1754552958480,1.7252,3697.3,3697.2,0.54084]
[1754552958677,0.9952,3697.2,3696.9,1.51466568]
[1754552958881,3.46209357,3697.0,3696.9,2.09237568]
[1754552959177,4.00297357,3697.0,3696.9,2.09237568]
[1754552959382,4.82741457,3697.0,3696.9,2.37407568]
[1754552960281,1.7252,3696.6,3696.5,1.96374]
[1754552960481,21.87609357,3696.6,3696.5,2.24544]
[1754552961791,22.70029425,3696.6,3696.5,2.24544]
[1754552962189,21.87609357,3696.6,3696.5,2.24544]
[1754552962880,21.87609357,3696.6,3696.5,1.21944]
[1754552963080,21.87609357,3696.6,3696.5,1.65954]
[1754552963280,21.87609357,3696.6,3696.5,1.1186]
[1754552963786,21.87609357,3696.6,3696.5,1.4228]
[1754552963987,21.87609357,3696.6,3696.5,1.7045]
[1754552964285,20.64619357,3696.6,3696.5,1.7045]
[1754552964487,20.15989357,3696.6,3696.5,1.7045]
[1754552965184,1.73689357,3696.6,3696.5,1.7045]
[1754552965385,20.15989357,3696.6,3696.5,1.7045]
[1754552965986,1.449,3697.4,3697.3,1.7045]
[1754552966285,20.97525837,3697.4,3697.3,1.7045]
[1754552966782,1.449,3697.3,3697.2,1.95264]
[1754552966989,2.54925837,3697.3,3697.2,1.7045]
[1754552967287,2.54925837,3697.3,3697.2,1.4228]
[1754552968285,0.7569,3697.2,3696.5,1.0145]
[1754552968485,0.7569,3697.2,3696.3,1.35245]
[1754552968486,20.97825837,3697.1,3697.0,1.1186]
[1754552968686,4.00995194,3697.1,3697.0,1.7045]
[1754552968887,21.61289357,3697.1,3697.0,1.7045]
[1754552969087,22.43695194,3697.1,3697.0,1.7045]
[1754552969483,22.71235194,3697.1,3697.0,1.7045]
[1754552970483,22.71235194,3697.1,3697.0,1.7228]
[1754552970879,22.71235194,3697.1,3697.0,0.9827]
[1754552971086,22.71235194,3697.1,3697.0,1.402]
[1754552971286,0.9993,3696.6,3696.2,1.0246]
[1754552971486,0.9993,3696.6,3696.4,1.7225]
[1754552971487,19.4004,3696.5,3696.4,1.7225]
[1754552971784,21.13729357,3696.5,3696.4,1.7225]
[1754552971984,21.86119357,3696.5,3696.4,1.7225]
[1754552973194,22.6860482,3696.5,3696.4,1.7225]
[1754552973692,22.6860482,3696.5,3696.3,0.54098]
[1754552973892,1.6763,3696.4,3696.3,1.7225]
[1754552979193,0.541,3696.2,3695.6,0.3053]
[1754552979396,19.8509,3696.1,3696.0,1.54421]
[1754552979597,23.60018714,3696.1,3696.0,1.23781]
[1754552979896,23.60018714,3696.1,3696.0,0.6968]
[1754552980692,0.82255,3695.8,3695.7,1.03426]
[1754552980899,0.82255,3695.8,3695.7,0.9979]
[1754552980900,20.1468,3695.8,3695.7,0.9979]
[1754552981399,21.88369357,3695.8,3695.7,1.343]
[1754552981792,21.88369357,3695.8,3695.7,1.043]
[1754552982188,0.54107,3695.7,3695.5,0.54109]
[1754552982495,0.54107,3695.7,3695.4,0.3451]
[1754552982496,1.6998,3695.4,3695.3,1.58412]
[1754552982691,19.4065,3695.4,3695.3,1.88942]
[1754552982894,1.73689357,3695.5,3695.4,1.6483]
[1754552983096,20.46739357,3695.5,3695.4,1.6483]
[1754552984400,21.41249357,3695.5,3695.4,1.6483]
[1754552984606,21.88469357,3695.5,3695.4,1.3483]
[1754552984901,21.88469357,3695.5,3695.4,0.3915]
[1754552985104,21.88469357,3695.5,3695.4,0.5383]
[1754552985504,21.88469357,3695.5,3695.4,1.0419]
[1754552985704,21.88469357,3695.5,3695.4,1.3483]
[1754552986303,21.88469357,3695.5,3695.3,0.54112]
[1754552986503,0.7688,3695.5,3695.4,1.6483]
[1754552986709,21.68999357,3695.5,3695.4,1.6483]
[1754552987109,21.88069357,3695.5,3695.4,1.6483]
[1754552987912,21.88069357,3695.5,3695.4,1.3483]
[1754552988609,1.495,3695.4,3695.3,0.93262]
[1754552988808,1.6998,3695.4,3695.3,0.93262]
[1754552989609,1.6998,3695.2,3695.1,0.54115]
[1754552989818,2.24096,3695.1,3695.0,1.58307]
[1754552990012,3.97785357,3695.1,3695.0,1.58307]
[1754552990208,0.2825,3694.6,3694.5,2.18954]
[1754552991211,18.7255,3694.6,3694.5,2.18954]
[1754552993513,18.443,3694.6,3694.5,2.18954]
[1754552994509,18.7255,3694.6,3694.5,2.18954]
[1754552994704,19.4025,3694.6,3694.5,2.18954]
[1754552994908,19.4025,3694.6,3694.5,0.54124]
[1754552995103,19.4025,3694.6,3694.5,1.54444]
[1754552995308,20.1428,3694.6,3694.5,1.88954]
[1754552995710,20.1428,3694.6,3694.5,2.18954]
[1754552997616,1.6998,3694.6,3694.5,2.18954]
[1754552998217,20.1358,3694.6,3694.5,2.18954]
[1754553000714,40.8,3695.4,3694.6,1.35308]
[1754553000920,19.1345,3695.4,3695.3,1.24263]
[1754553001111,21.92229357,3695.4,3695.3,1.54493]
[1754553001510,21.92229357,3695.4,3695.3,2.19073]
[1754553001719,21.16529357,3695.4,3695.3,2.19073]
[1754553001916,1.73689357,3695.7,3695.6,1.0038]
[1754553002118,20.17989357,3695.7,3695.6,2.19068]
[1754553002417,20.47379357,3695.7,3695.6,2.19068]
[1754553002617,20.47879357,3695.7,3695.6,2.19068]
[1754553003015,20.68579357,3695.7,3695.6,2.19068]
[1754553003317,21.73569357,3695.7,3695.6,2.19068]
[1754553003715,3.28769357,3695.7,3695.6,2.19068]
[1754553004019,20.18289357,3695.7,3695.6,2.19068]
[1754553004614,20.47679357,3695.7,3695.6,2.19068]
[1754553007311,2.32304875,3696.6,3696.3,0.54098]
[1754553007312,0.54098,3696.4,3696.3,0.54098]
[1754553007519,21.92029357,3696.4,3696.3,1.88828]
[1754553007720,22.74580162,3696.4,3696.3,1.88828]
[1754553008116,4.30580162,3696.4,3696.3,1.88828]
[1754553008314,3.48029357,3696.4,3696.3,1.88828]
[1754553008521,3.48029357,3696.4,3696.3,2.19058]
[1754553008522,21.91929357,3696.4,3696.3,2.19058]
[1754553008809,3.54880162,3696.4,3696.3,2.19058]
[1754553009018,2.56890805,3696.7,3696.6,1.88824]
[1754553009218,22.74480162,3696.7,3696.6,1.88824]
[1754553011116,22.75380162,3696.7,3696.6,2.19054]
[1754553012622,4.30580162,3696.7,3696.6,2.19054]
[1754553012823,3.48029357,3696.7,3696.6,2.19054]
[1754553013023,21.92129357,3696.7,3696.6,2.19054]
[1754553013224,22.74680162,3696.7,3696.6,2.19054]
[1754553014019,22.74680162,3696.7,3696.6,1.88824]
[1754553014220,21.92129357,3696.7,3696.6,2.19054]
[1754553014823,3.48029357,3696.7,3696.6,2.19054]
[1754553015127,4.11936457,3697.1,3697.0,1.88818]
[1754553015316,3.48029357,3697.1,3697.0,2.19048]
[1754553015518,21.91929357,3697.1,3697.0,2.19048]
[1754553017815,21.91929357,3697.1,3697.0,0.54088]
[1754553018224,2.28428,3697.0,3696.9,0.54088]
[1754553018423,4.02117357,3697.0,3696.9,0.54088]
[1754553018623,1.7434,3696.5,3696.4,1.0425]
[1754553019020,1.7434,3696.5,3696.4,1.58347]
[1754553020027,1.7434,3696.5,3696.4,0.93767]
[1754553021923,0.757,3696.4,3696.3,0.54097]
[1754553022120,1.7434,3696.4,3696.3,0.54097]
[1754553023531,3.48029357,3696.4,3696.3,0.54097]
[1754553026224,0.6925,3696.3,3696.2,0.54098]
[1754553026430,1.7434,3696.3,3696.2,0.54098]
[1754553026629,1.73689357,3696.4,3696.1,0.6458]
[1754553026630,1.2335,3696.2,3696.1,0.541]
[1754553026827,2.2844,3696.2,3696.1,0.541]
[1754553027223,1.23352,3696.1,3696.0,0.54102]
[1754553027422,4.02131357,3696.1,3696.0,0.54102]
[1754553027624,1.7434,3695.9,3695.8,0.54103]
[1754553027821,3.48029357,3695.9,3695.8,0.54103]
[1754553028135,2.28445,3695.8,3695.7,0.54106]
[1754553028627,1.7434,3695.8,3695.7,0.54106]
[1754553028827,1.7434,3695.8,3695.7,1.58356]
[1754553029131,1.7434,3695.8,3695.7,1.88836]
[1754553029331,2.2521,3695.6,3695.5,0.92599]
[1754553029532,3.98899357,3695.6,3695.5,1.56569]
[1754553029928,3.44789357,3695.6,3695.5,1.85749]
[1754553030127,3.44789357,3695.6,3695.5,2.16249]
[1754553032233,3.44789357,3695.6,3695.5,0.54109]
[1754553032735,3.44789357,3695.6,3695.5,1.56569]
[1754553033130,2.43179357,3695.6,3694.8,1.35297]
[1754553033438,2.01729357,3695.0,3694.9,2.16259]
[1754553033630,2.95899357,3695.0,3694.9,2.16259]
[1754553033933,3.44789357,3695.0,3694.9,2.16259]
[1754553034434,2.50529357,3695.0,3694.9,2.16259]
[1754553035033,3.44789357,3695.0,3694.9,2.16259]
[1754553036237,3.44789357,3695.0,3694.9,0.54119]
[1754553036640,2.25219,3694.9,3694.8,0.5412]
[1754553036931,3.44789357,3694.9,3694.8,0.5412]
[1754553038836,3.44789357,3694.9,3694.8,1.1809]
[1754553039037,3.44789357,3694.9,3694.8,1.5658]
[1754553039432,3.44789357,3694.9,3694.8,1.8576]
[1754553039633,3.44789357,3694.9,3694.8,2.1626]
[1754553040034,20.97957036,3695.4,3695.3,1.51093]
[1754553040233,19.6479,3695.4,3695.3,2.16253]
[1754553040438,19.9411,3695.4,3695.3,2.16253]
[1754553040627,4.44097357,3697.5,3695.3,2.16253]
[1754553040628,1.4306,3695.8,3695.7,0.9698]
[1754553040831,1.4306,3695.8,3695.7,1.3164]
[1754553040832,3.44789357,3695.8,3695.7,1.3164]
[1754553041233,1.2685,3695.8,3695.7,1.3164]
[1754553041434,1.711,3696.0,3695.9,2.16244]
[1754553041638,3.44789357,3696.0,3695.9,1.85744]
[1754553042840,0.5736,3696.7,3696.6,0.54094]
[1754553043043,40.69689357,3697.5,3696.2,1.54188]
[1754553043044,20.25232637,3697.0,3696.9,1.56419]
[1754553043242,4.27791994,3697.0,3696.9,1.85729]
[1754553043538,3.44789357,3697.0,3696.9,1.85729]
[1754553043743,2.71219357,3697.0,3696.9,2.16229]
[1754553044038,2.71219357,3697.0,3696.9,1.85729]
[1754553044039,3.44789357,3697.0,3696.9,1.85729]
[1754553044242,3.44789357,3697.0,3696.6,0.305]
[1754553044243,1.4178,3696.8,3696.7,0.54091]
[1754553044443,1.0161,3696.7,3696.5,0.6397]
[1754553044740,1.0161,3696.7,3696.0,1.35255]
[1754553044741,0.6949,3696.5,3696.4,0.54095]
[1754553044941,3.44789357,3696.5,3696.4,0.54095]
[1754553045345,3.44789357,3696.5,3696.4,0.73645]
[1754553046139,3.44789357,3696.5,3696.4,0.92585]
[1754553046344,3.44789357,3696.5,3696.4,0.54095]
[1754553046541,1.55707,3696.4,3696.3,0.92587]
[1754553046837,3.98886357,3696.4,3696.3,0.92587]
[1754553047038,3.98886357,3696.4,3696.2,0.54099]
[1754553047242,1.711,3696.3,3696.2,0.54099]
[1754553047443,1.711,3696.3,3696.2,0.92589]
[1754553047642,1.711,3696.3,3696.2,0.73649]
[1754553048644,1.711,3696.3,3696.2,0.92589]
[1754553048946,1.711,3696.3,3696.2,1.85609]
[1754553054539,1.711,3696.3,3696.2,0.54099]
[1754553055349,1.711,3696.3,3696.2,1.37489]
[1754553055551,1.711,3696.3,3696.2,1.56429]
[1754553055743,1.711,3696.3,3696.2,1.27119]
[1754553055947,1.711,3696.3,3696.2,0.92589]
[1754553056849,1.711,3696.3,3696.2,1.56429]
[1754553057650,1.711,3696.3,3696.2,1.85609]
[1754553058145,1.711,3696.3,3696.2,2.16109]
[1754553062150,1.4178,3696.3,3696.2,2.16109]
[1754553062344,0.3075,3696.3,3696.2,1.21769]
[1754553062647,0.9754,3696.6,3696.5,1.0316]
[1754553062847,1.49790713,3696.9,3696.8,1.22671]
[1754553063055,2.40479357,3696.9,3696.8,1.86521]
[1754553063249,2.71229357,3696.9,3696.8,1.86521]
[1754553063453,2.71229357,3696.9,3696.8,2.16581]
[1754553063843,2.04439357,3696.9,3696.8,2.16581]
[1754553064041,3.42499357,3696.9,3696.8,1.86521]
[1754553064746,3.42499357,3696.9,3696.8,2.16581]
[1754553068657,3.42499357,3696.9,3696.8,1.86521]
[1754553068856,3.42499357,3696.9,3696.8,2.16581]
[1754553071160,4.25642374,3696.9,3696.8,2.16581]
[1754553071859,3.42499357,3696.9,3696.8,2.16581]
[1754553072255,4.25695709,3696.9,3696.8,2.16581]
[1754553072462,2.52006352,3696.9,3696.8,2.16581]
[1754553072758,4.25695709,3696.9,3696.8,2.16581]
[1754553073655,4.2569367,3696.9,3696.8,2.16581]
[1754553074053,4.25693603,3696.9,3696.8,2.16581]
[1754553075759,3.42499357,3696.9,3696.8,2.16581]
[1754553075962,4.25691265,3696.9,3696.8,2.16581]
[1754553076161,3.42499357,3696.9,3696.8,2.16581]
[1754553077458,3.42499357,3696.9,3696.8,0.54091]
[1754553077459,2.04439357,3696.9,3696.8,0.54091]
[1754553077659,1.6881,3696.8,3696.7,0.54091]
[1754553077861,2.51986282,3696.8,3696.7,0.54091]
[1754553080857,2.22902,3696.7,3696.6,0.54093]
[1754553081055,1.20885,3696.6,3696.5,0.54094]
[1754553081254,4.79770639,3696.6,3696.5,0.54094]
[1754553081864,4.79770639,3696.6,3695.9,1.3526]
[1754553081865,2.22906,3696.5,3696.4,0.54095]
[1754553082065,4.79771639,3696.5,3696.4,0.54095]
[1754553082265,4.25675639,3696.5,3696.4,0.54095]
[1754553082765,4.25675639,3696.5,3696.4,1.56555]
[1754553083668,4.25675639,3696.5,3696.4,1.0246]
[1754553086783,4.25675639,3696.5,3696.4,0.5432]
[1754553086977,4.25675639,3696.5,3696.4,0.8359]
[1754553087283,4.25675639,3696.5,3696.4,1.0246]
[1754553087878,4.25675639,3696.5,3696.4,1.6248]
[1754553090182,4.25675639,3696.5,3696.4,1.3242]
[1754553090682,4.25675639,3696.5,3696.4,1.6132]
[1754553091382,4.25675639,3696.5,3696.4,1.3242]
[1754553091684,4.25675639,3696.5,3696.4,1.6132]
[1754553092484,4.25675639,3696.5,3696.4,1.3242]
[1754553096672,4.25675639,3696.5,3696.4,1.6132]
[1754553097073,0.83176282,3696.5,3696.4,1.3242]
[1754553097383,2.03559357,3696.8,3696.7,1.5964]
[1754553097580,3.80235865,3696.8,3696.7,2.13732]
[1754553098079,2.86765865,3696.8,3696.7,2.13732]
[1754553098277,4.08545865,3696.8,3696.7,2.13732]
[1754553099177,4.28825865,3696.8,3696.7,2.13732]
[1754553099574,2.56895865,3696.8,3696.7,2.13732]
[1754553100181,2.86765865,3696.8,3696.7,2.13732]
[1754553100680,3.16475865,3696.8,3696.7,2.13732]
[1754553100886,3.60235865,3696.8,3696.7,2.13732]
[1754553101183,0.83206508,3696.8,3696.7,2.13732]
[1754553101373,1.7193,3697.0,3696.9,2.13729]
[1754553101577,2.5513132,3697.0,3696.9,2.13729]
[1754553102588,4.28820677,3697.0,3696.9,2.13729]
[1754553103285,1.8166132,3697.0,3696.9,1.84829]
[1754553103486,3.55350677,3697.0,3696.9,2.13729]
[1754553103682,4.28820677,3697.0,3696.9,2.13729]
[1754553105290,4.28820677,3697.0,3696.9,1.84829]
[1754553105585,4.28820677,3697.0,3696.9,1.56689]
[1754553105984,4.28820677,3697.0,3696.9,0.54089]
[1754553107888,0.54091,3696.8,3696.5,1.35238]
[1754553108193,3.45619357,3696.6,3696.5,0.54095]
[1754553108486,4.28820677,3696.6,3696.5,0.54095]
[1754553117698,2.86760677,3696.6,3696.5,0.54095]
[1754553118003,4.28820677,3696.6,3696.5,1.56695]
[1754553118203,4.28820677,3696.6,3696.5,1.84835]
[1754553119907,4.28820677,3696.6,3696.5,1.56695]
[1754553120208,2.24875,3696.5,3696.4,0.93685]
[1754553120407,4.81765677,3696.5,3696.4,1.57005]
[1754553121504,4.27670677,3696.5,3696.4,1.57005]
[1754553121807,4.27670677,3696.5,3696.4,1.86445]
[1754553122006,4.27670677,3696.5,3696.4,2.15385]
[1754553122905,3.55610677,3696.5,3696.4,2.15385]
[1754553123207,3.35390677,3696.5,3696.4,2.15385]
[1754553124502,4.27670677,3696.5,3696.4,1.86445]
[1754553124709,4.27670677,3696.5,3696.4,0.8343]
[1754553125010,4.27670677,3696.5,3696.4,1.3235]
[1754553125404,2.56890677,3696.5,3696.4,1.6129]
[1754553125604,2.86260677,3696.5,3696.4,1.6129]
[1754553127605,2.56890677,3696.5,3696.4,1.6129]
[1754553128005,2.86260677,3696.5,3696.4,1.6129]
[1754553129009,3.58320677,3696.5,3696.4,1.6129]
[1754553129209,2.86260677,3696.5,3696.4,1.6129]
[1754553129712,2.86260677,3696.5,3696.4,1.70274345]
[1754553130312,2.03059357,3696.5,3696.4,1.70274345]
[1754553130508,18.418,3697.0,3696.9,1.57279]
[1754553130715,21.46925183,3697.0,3696.9,2.15379]
[1754553130910,22.69125183,3697.0,3696.9,2.15379]
[1754553131612,22.69125183,3697.0,3696.9,2.24363345]
[1754553135717,4.27325183,3697.0,3696.9,1.95423345]
[1754553136016,22.69125183,3697.0,3696.9,1.95423345]
[1754553139619,22.69125183,3697.0,3696.9,0.82403345]
[1754553139821,22.69125183,3697.0,3696.9,0.63073345]
[1754553140919,22.69125183,3697.0,3696.9,0.08984345]
[1754553141122,1.23444,3696.7,3696.6,0.54093]
[1754553141316,23.23119183,3696.7,3696.6,0.54093]
[1754553141512,23.23119183,3696.7,3696.6,1.57003]
[1754553142227,23.23119183,3696.7,3696.6,1.86443]
[1754553143927,22.69025183,3696.7,3696.6,1.86443]
[1754553144623,21.96965183,3696.7,3696.6,1.86443]
[1754553144822,22.69025183,3696.7,3696.6,2.15383]
[1754553146027,22.69025183,3696.7,3696.6,1.86443]
[1754553147024,22.69025183,3696.7,3696.6,2.15383]
[1754553149424,22.69025183,3696.7,3696.6,1.86443]
[1754553151430,0.82855826,3696.7,3696.6,2.15413]
[1754553151728,1.73689357,3696.9,3696.8,0.5409]
[1754553152024,2.86542971,3696.9,3696.8,2.1809]
[1754553152224,3.83502971,3696.9,3696.8,2.1809]
[1754553152525,4.27732971,3696.9,3696.8,2.1809]
[1754553153729,0.82823614,3696.9,3696.8,2.1809]
[1754553153933,2.56512971,3696.9,3696.8,2.1809]
[1754553154630,4.27732971,3696.9,3696.8,1.8912]
[1754553154926,4.27732971,3696.9,3696.5,0.6562]
[1754553154927,0.4901,3696.6,3696.5,0.6562]
[1754553155232,22.69193727,3696.6,3696.5,0.6562]
[1754553156032,22.69193727,3696.6,3696.5,1.19714]
[1754553156330,22.69193727,3696.6,3696.5,1.89124]
[1754553158834,22.69193727,3696.6,3696.5,1.3503]
[1754553159034,22.69193727,3696.6,3696.1,1.3525]
[1754553159035,2.25318,3696.4,3696.3,0.54097]
[1754553159334,21.4960237,3696.4,3696.3,0.54097]
[1754553162337,20.9550437,3696.4,3696.3,0.54097]
[1754553162543,20.9550437,3696.4,3696.3,0.88757]
[1754553162741,20.9550437,3696.4,3696.3,1.19717]
[1754553162939,20.9550437,3696.4,3696.3,1.58207]
[1754553164738,20.1272,3696.4,3696.3,2.18097]
[1754553165138,20.95458091,3696.4,3696.3,2.18097]
[1754553165342,20.95458091,3696.4,3696.3,1.89127]
[1754553165645,20.95458091,3696.4,3696.3,2.18097]
[1754553166440,20.1272,3696.4,3696.3,2.18097]
[1754553166644,20.95454799,3696.4,3696.3,2.18097]
[1754553168345,20.1272,3696.4,3696.3,0.54097]
[1754553168547,20.95463527,3696.4,3696.3,1.58207]
[1754553168744,20.95463527,3696.4,3696.3,1.89127]
[1754553169247,61.75463527,3696.4,3696.3,1.89127]
[1754553174051,61.75463527,3696.4,3696.3,2.18097]
[1754553175252,61.75463527,3696.4,3696.3,1.89127]
[1754553179456,61.75363527,3696.4,3696.3,1.89127]
[1754553179758,61.75363527,3696.4,3696.3,2.18327]
[1754553181958,61.75363527,3696.4,3696.3,1.89127]
[1754553184057,61.75263527,3696.4,3696.3,1.89127]
[1754553187455,20.95263527,3696.4,3696.3,1.89127]
[1754553188765,19.24043527,3696.4,3696.3,1.89127]
[1754553188962,1.73689357,3696.4,3696.3,2.18327]
[1754553189464,2.56596655,3696.4,3696.3,2.18327]
[1754553189663,2.86026655,3696.4,3696.3,2.18327]
[1754553190257,3.60636655,3696.4,3696.3,2.18327]
[1754553191969,3.80576655,3696.4,3696.3,2.18327]
[1754553193369,0.82907298,3696.4,3696.3,2.18327]
[1754553193668,2.26238,3697.0,3696.9,1.6487]
[1754553193868,22.70124673,3697.0,3696.9,1.6487]
[1754553195268,22.70124673,3697.0,3696.9,1.68584507]
[1754553198868,22.70024673,3697.0,3696.9,1.39384507]
[1754553199665,22.70024673,3697.0,3696.9,1.08624507]
[1754553200263,22.70024673,3697.0,3696.9,1.39384507]
[1754553204273,0.83185316,3697.0,3696.9,1.39384507]
[1754553204460,0.83185316,3697.0,3696.9,1.68584507]
[1754553204461,22.69824673,3697.0,3696.9,1.68584507]
[1754553207176,22.69824673,3697.0,3696.9,1.39384507]
[1754553208776,4.29024673,3697.0,3696.9,1.39384507]
[1754553209076,22.69724673,3697.0,3696.9,1.39384507]
[1754553209476,4.29024673,3697.0,3696.9,1.39384507]
[1754553209969,1.03474,3696.6,3696.5,0.54094]
[1754553210270,1.22766,3696.5,3696.4,0.54096]
[1754553210471,1.73689357,3696.5,3696.0,0.2906]
[1754553210672,1.7469,3696.0,3695.9,0.54104]
[1754553210877,0.6867,3695.6,3695.5,0.9605]
[1754553211077,3.48379357,3695.6,3695.5,0.73899]
[1754553211273,3.48379357,3695.6,3695.5,0.92579]
[1754553211577,3.48379357,3695.6,3695.5,1.56199]
[1754553212079,3.48379357,3695.6,3695.5,0.54109]
[1754553212579,3.48379357,3695.6,3695.5,0.88669]
[1754553212877,3.48379357,3695.6,3695.5,1.56199]
[1754553213076,4.31396087,3695.6,3695.5,1.84719]
[1754553213269,3.48379357,3695.6,3695.5,1.84719]
[1754553217874,3.48379357,3695.6,3695.5,2.15009]
[1754553218174,18.407,3695.7,3695.2,1.35283]
[1754553218175,21.14199357,3696.0,3695.9,1.51384]
[1754553218381,21.77650147,3696.0,3695.9,1.51384]
[1754553218578,20.94809357,3696.0,3695.9,2.15004]
[1754553219079,21.69889357,3696.0,3695.9,2.15004]
[1754553219280,20.94809357,3696.0,3695.9,2.15004]
[1754553220380,2.54009357,3696.0,3695.9,2.15004]
[1754553220680,21.89279357,3696.0,3695.9,2.15004]
[1754553222678,21.89279357,3696.0,3695.8,0.54104]
[1754553222679,0.54104,3695.9,3695.8,0.54104]
[1754553222882,2.28796,3695.8,3695.7,0.54106]
[1754553223175,2.28796,3695.8,3695.3,1.65568]
[1754553223176,1.7469,3695.7,3695.6,0.88667]
[1754553223381,3.48379357,3695.7,3695.6,1.17727]
[1754553223878,0.6867,3695.4,3695.3,1.84722]
[1754553224182,3.48379357,3695.4,3695.3,1.84722]
[1754553225583,3.48379357,3695.4,3695.3,0.92582]
[1754553225785,3.48379357,3695.4,3695.3,1.56202]